bitfinex-derivatives/quotes_ETHF0:USTF0_20241005
["timestamp","ask_amount","ask_price","bid_price","bid_amount"]
[1728171267849,0.33127,2414.8,2414.7,0.53432167]
[1728171267850,1.52127,2414.8,2414.7,0.53432167]
[1728171269245,1.52127,2414.8,2414.7,0.53428768]
[1728171269449,1.19,2414.8,2414.6,0.3897]
[1728171269850,1.52128,2414.8,2414.7,4.35845561]
[1728171271653,4.72908,2414.8,2414.7,4.35845561]
[1728171271853,1.52128,2414.8,2414.7,4.35845561]
[1728171272053,4.72908,2414.8,2414.7,4.35845561]
[1728171278347,1.52128,2414.8,2414.7,4.35845561]
[1728171278550,8.87068,2414.8,2414.7,4.35845561]
[1728171278745,0.33129,2414.7,2414.4,1.23942]
[1728171278947,1.606,2414.6,2414.4,1.14342]
[1728171279149,1.9979,2414.6,2414.4,1.14342]
[1728171280841,1.9979,2414.6,2414.5,0.5341175]
[1728171281253,1.9979,2414.6,2414.4,1.14342]
[1728171281455,1.9979,2414.6,2414.4,0.8121]
[1728171281754,1.5819,2414.6,2414.5,0.33131]
[1728171282350,1.5819,2414.6,2414.4,0.8121]
[1728171283149,1.9772,2414.6,2414.4,0.8121]
[1728171283654,1.9772,2414.6,2414.4,1.14342]
[1728171284253,1.9772,2414.6,2414.5,0.53399411]
[1728171284453,1.9772,2414.6,2414.4,1.14342]
[1728171287666,1.5819,2414.6,2414.4,1.14342]
[1728171289152,1.5819,2414.6,2414.5,4.99496614]
[1728171289350,3.6071,2414.7,2414.5,5.32627614]
[1728171289351,4.7971,2414.7,2414.5,5.32627614]
[1728171289560,3.2078,2414.7,2414.6,0.3313]
[1728171289758,3.2078,2414.7,2414.6,0.7556]
[1728171289958,3.2078,2414.7,2414.6,6.09393174]
[1728171292168,0.289,2415.1,2414.6,9.90423174]
[1728171292169,3.2078,2414.8,2414.6,9.90423174]
[1728171292360,3.2078,2414.8,2414.7,0.86531927]
[1728171292768,3.2078,2414.8,2414.7,5.40728491]
[1728171293164,3.2078,2414.8,2414.7,4.87324564]
[1728171293468,3.2078,2414.8,2414.7,9.54912319]
[1728171294160,1.92273,2415.1,2414.7,9.54912319]
[1728171294466,1.92273,2415.1,2414.8,0.94297755]
[1728171294668,1.92273,2415.1,2414.9,0.53427755]
[1728171294866,1.92273,2415.1,2414.9,4.59443558]
[1728171298374,5.13053,2415.1,2414.9,4.59443558]
[1728171298578,1.92273,2415.1,2414.9,4.59443558]
[1728171298874,5.13053,2415.1,2414.9,4.59443558]
[1728171299577,1.92273,2415.1,2414.9,4.59443558]
[1728171299758,4.7993,2415.1,2414.9,4.59443558]
[1728171299961,0.33124,2415.0,2414.9,4.59443558]
[1728171300576,0.33124,2415.0,2414.9,5.12882175]
[1728171302373,0.33124,2415.0,2414.9,4.59443558]
[1728171302569,0.33124,2415.0,2414.9,5.1288106]
[1728171303579,0.74974,2415.0,2414.9,5.1288106]
[1728171304275,0.74974,2415.0,2414.9,4.59443558]
[1728171304475,10.5593,2415.0,2414.4,0.096]
[1728171304778,1.52131,2414.5,2414.4,0.096]
[1728171304977,1.52131,2414.5,2414.3,0.4268]
[1728171305177,0.8101,2414.4,2414.3,0.4268]
[1728171305381,0.8101,2414.4,2414.3,0.96118546]
[1728171305580,1.14142,2414.4,2414.3,5.57647848]
[1728171305781,0.8101,2414.4,2414.3,5.5764795]
[1728171306672,1.14142,2414.4,2414.3,5.1496795]
[1728171306871,1.14142,2414.4,2414.3,4.61529302]
[1728171307569,1.55012,2414.4,2414.3,4.61529302]
[1728171308581,1.2188,2414.4,2414.3,4.61529302]
[1728171308778,1.55012,2414.4,2414.1,0.388]
[1728171308979,1.19,2414.3,2414.1,0.388]
[1728171309175,1.19,2414.3,2414.2,0.53416797]
[1728171309575,1.19,2414.3,2414.1,0.388]
[1728171309783,1.52135,2414.3,2414.1,0.388]
[1728171310181,3.53916,2414.2,2413.9,0.4033]
[1728171310381,1.19,2414.1,2414.0,0.53402786]
[1728171310580,1.5966,2414.1,2414.0,0.53402786]
[1728171311077,0.4066,2414.1,2414.0,0.53402786]
[1728171311674,4.3978,2414.2,2414.0,0.53402786]
[1728171311880,4.3978,2414.2,2414.0,4.40240843]
[1728171312683,4.72915,2414.2,2414.0,4.40240843]
[1728171313477,4.3978,2414.2,2414.0,4.40240843]
[1728171314489,4.3978,2414.2,2414.0,4.73377843]
[1728171314982,1.19,2414.2,2414.0,4.73377843]
[1728171315779,1.19,2414.2,2414.1,0.33136]
[1728171316187,1.19,2414.2,2414.1,0.75106]
[1728171317094,2.0001,2414.4,2414.1,5.36285156]
[1728171317588,2.0001,2414.4,2414.2,0.3964]
[1728171317890,2.0001,2414.4,2414.3,4.61838672]
[1728171318095,2.33142,2414.4,2414.3,4.61838672]
[1728171319495,5.53922,2414.4,2414.3,4.61838672]
[1728171320398,5.2079,2414.4,2414.3,4.61838672]
[1728171323500,2.0001,2414.4,2414.3,4.61838672]
[1728171324008,5.2079,2414.4,2414.3,4.61838672]
[1728171324208,2.0001,2414.4,2414.3,4.61838672]
[1728171324408,5.53922,2414.4,2414.3,4.61838672]
[1728171324809,2.33142,2414.4,2414.3,4.61838672]
[1728171325812,5.53922,2414.4,2414.3,4.61838672]
[1728171326403,2.33142,2414.4,2414.3,4.61838672]
[1728171327104,5.53922,2414.4,2414.3,4.61838672]
[1728171327510,2.33142,2414.4,2414.3,4.61838672]
[1728171327716,5.53922,2414.4,2414.3,4.61838672]
[1728171336320,5.2079,2414.4,2414.3,4.61838672]
[1728171341415,2.0001,2414.4,2414.3,4.61838672]
[1728171341718,5.2079,2414.4,2414.3,4.61838672]
[1728171342218,2.0001,2414.4,2414.3,4.61838672]
[1728171342418,5.2079,2414.4,2414.3,4.61838672]
[1728171344322,15.3495,2414.4,2413.8,3.2078]
[1728171344513,1.19,2414.0,2413.9,1.26044142]
[1728171344918,1.19,2414.0,2413.9,5.77972826]
[1728171345826,1.19,2414.3,2413.9,9.59074826]
[1728171346015,1.19,2414.3,2414.2,0.33135]
[1728171346422,1.19,2414.3,2414.1,0.3912]
[1728171346823,1.19,2414.3,2414.2,0.74275]
[1728171347331,1.19,2414.3,2414.2,0.94572667]
[1728171349531,1.19,2414.3,2414.2,1.27707667]
[1728171350026,1.19,2414.3,2414.2,0.94572667]
[1728171352625,1.19,2414.3,2414.2,0.4114]
[1728171352834,1.19,2414.3,2414.2,0.94658606]
[1728171354422,1.52134,2414.3,2414.2,0.94658606]
[1728171356319,4.72914,2414.3,2414.2,0.53518606]
[1728171359432,4.3978,2414.3,2414.1,0.3912]
[1728171359731,3.53914,2414.3,2414.2,4.96401253]
[1728171361939,3.53914,2414.3,2414.2,4.9640025]
[1728171362836,4.72914,2414.3,2414.2,0.53513492]
[1728171365032,4.72914,2414.3,2413.9,1.81914212]
[1728171365234,1.19,2414.0,2413.9,1.81914212]
[1728171365539,1.19,2414.0,2413.9,9.16100475]
[1728171365739,1.19,2414.0,2413.9,9.67905878]
[1728171367435,3.53914,2414.3,2414.1,0.33136]
[1728171367436,4.3978,2414.3,2414.1,0.33136]
[1728171367641,4.3978,2414.3,2414.2,1.35861758]
[1728171367942,4.72914,2414.3,2414.2,6.05764748]
[1728171368439,4.3978,2414.3,2414.2,5.5225299]
[1728171368735,4.3978,2414.3,2414.2,6.05764419]
[1728171371035,1.19,2414.3,2414.2,6.05764419]
[1728171371737,1.19,2414.3,2414.2,5.5225299]
[1728171371943,1.19,2414.3,2414.2,6.05764807]
[1728171374847,1.19,2414.3,2414.2,5.63914807]
[1728171377249,1.52134,2414.3,2414.2,5.25034807]
[1728171378450,1.52134,2414.3,2414.2,5.25036944]
[1728171380948,1.52134,2414.3,2414.2,0.53513954]
[1728171381250,5.66374,2414.3,2414.2,0.53513954]
[1728171384952,5.66374,2414.3,2414.0,0.4216]
[1728171385157,0.33134,2414.3,2414.1,0.53503889]
[1728171385346,0.33134,2414.3,2414.2,0.53503889]
[1728171385855,4.47374,2414.3,2414.2,0.53503889]
[1728171386750,5.66374,2414.3,2414.2,0.53503889]
[1728171386949,0.33135,2414.2,2414.0,0.4216]
[1728171387149,1.5977,2414.1,2414.0,0.4216]
[1728171387454,1.5977,2414.1,2414.0,0.95661454]
[1728171387851,1.92906,2414.1,2414.0,0.95661454]
[1728171388549,2.5357,2414.1,2414.0,0.95661454]
[1728171389852,2.86706,2414.1,2414.0,0.95661454]
[1728171393157,1.19,2414.1,2414.0,1.28798454]
[1728171393456,1.19,2414.1,2414.0,0.95661454]
[1728171394750,1.19,2414.1,2414.0,0.4216]
[1728171395160,1.19,2414.1,2414.0,0.9565595]
[1728171395756,1.52136,2414.1,2414.0,0.9565595]
[1728171395960,1.19,2414.1,2414.0,0.9565595]
[1728171396457,1.52136,2414.1,2414.0,0.9565595]
[1728171396853,1.19,2414.1,2414.0,0.9565595]
[1728171397960,1.19,2414.1,2414.0,0.4216]
[1728171398262,1.19,2414.1,2414.0,0.95655683]
[1728171398966,1.52136,2414.1,2414.0,0.95655683]
[1728171400261,1.19,2414.1,2414.0,0.95655683]
[1728171400463,1.5822,2414.1,2414.0,0.95655683]
[1728171400952,1.5822,2414.1,2414.0,0.95654615]
[1728171401567,1.5822,2414.1,2414.0,0.95653254]
[1728171404664,1.5822,2414.1,2414.0,0.95650007]
[1728171408071,1.5822,2414.1,2414.0,0.95648258]
[1728171409073,1.91356,2414.1,2414.0,0.95648258]
[1728171409263,1.5822,2414.1,2414.0,0.95648258]
[1728171411461,1.5822,2414.1,2414.0,0.4216]
[1728171411654,1.5822,2414.1,2414.0,0.95648927]
[1728171418267,1.5822,2414.1,2414.0,0.95657414]
[1728171420268,4.79,2414.1,2414.0,0.95657414]
[1728171420872,1.5822,2414.1,2414.0,0.95667044]
[1728171421277,4.79,2414.1,2414.0,0.95667044]
[1728171422671,5.12136,2414.1,2414.0,0.95667044]
[1728171423072,5.12136,2414.1,2414.0,0.53507044]
[1728171423671,5.12136,2414.1,2413.8,0.8164]
[1728171423876,3.93136,2414.1,2413.9,0.53522892]
[1728171424177,0.72356,2414.1,2414.0,0.53522892]
[1728171424378,3.93136,2414.1,2414.0,0.53522892]
[1728171426581,0.72356,2414.1,2414.0,0.53522892]
[1728171427185,0.72356,2414.1,2413.8,0.8164]
[1728171427186,0.33139,2413.9,2413.8,0.8164]
[1728171427479,1.52139,2413.9,2413.8,0.94604692]
[1728171427984,1.91169,2413.9,2413.8,0.94604692]
[1728171430183,1.91169,2413.9,2413.8,0.4109]
[1728171430679,1.91169,2413.9,2413.8,0.94579708]
[1728171430680,1.5803,2413.9,2413.8,0.94579708]
[1728171431370,1.5803,2413.9,2413.8,0.4109]
[1728171431371,2.84869,2413.9,2413.8,0.4109]
[1728171432077,6.05649,2413.9,2413.8,0.4109]
[1728171434687,3.2078,2413.9,2413.8,5.08802966]
[1728171434981,3.2078,2413.9,2413.8,9.45456808]
[1728171435183,3.2078,2413.9,2413.5,0.096]
[1728171435184,4.1432,2413.8,2413.5,0.096]
[1728171435392,4.1432,2413.8,2413.2,0.6163]
[1728171435393,3.2078,2413.6,2413.2,0.6163]
[1728171435585,2.09674,2413.8,2413.2,0.4243]
[1728171435586,4.72927,2413.3,2413.2,0.4243]
[1728171435884,4.72927,2413.3,2413.2,4.76453725]
[1728171437083,4.3978,2413.3,2413.2,0.4243]
[1728171442088,4.3978,2413.3,2413.1,0.3926]
[1728171442089,4.72928,2413.3,2412.9,0.096]
[1728171442392,0.3936,2413.2,2413.0,5.1632896]
[1728171442580,3.2078,2413.1,2413.0,5.1632896]
[1728171442778,3.2078,2413.1,2413.0,0.8333]
[1728171442984,3.2078,2413.1,2413.0,5.34296009]
[1728171444186,4.3978,2413.1,2413.0,5.34296009]
[1728171459399,4.8219,2413.1,2413.0,5.34296009]
[1728171459801,9.2974,2413.1,2413.0,4.50966009]
[1728171460008,0.33154,2412.8,2412.7,0.096]
[1728171460312,1.52154,2412.8,2412.6,0.4187]
[1728171460503,0.814,2412.7,2412.6,0.4187]
[1728171460909,0.814,2412.7,2412.6,5.14040979]
[1728171462004,3.4968,2413.1,2412.6,9.28520979]
[1728171462212,0.289,2413.3,2413.2,0.33149]
[1728171462510,4.3978,2413.3,2413.2,4.32635934]
[1728171462702,4.3978,2413.3,2413.2,8.47035934]
[1728171462902,4.3978,2413.3,2413.2,4.144]
[1728171463103,4.3978,2413.3,2413.1,0.7785]
[1728171463509,4.3978,2413.3,2413.2,4.64309703]
[1728171464804,4.8121,2413.3,2413.2,4.64309703]
[1728171466406,1.6043,2413.3,2413.2,4.64309703]
[1728171466602,4.8121,2413.3,2413.2,4.64309703]
[1728171468308,1.6043,2413.3,2413.2,4.64309703]
[1728171468508,4.8121,2413.3,2413.2,4.97458703]
[1728171471314,4.3978,2413.3,2413.2,4.97458703]
[1728171471517,1.19,2413.3,2413.2,5.90966253]
[1728171471719,1.19,2413.3,2413.2,5.37988703]
[1728171471918,4.3978,2413.3,2413.2,5.37988703]
[1728171472116,1.19,2413.3,2413.2,5.90966309]
[1728171472809,3.2078,2413.5,2413.2,5.57817309]
[1728171473015,1.19,2413.5,2413.4,0.33146]
[1728171473218,1.19,2413.5,2413.4,0.86130796]
[1728171473517,1.19,2413.5,2413.4,5.57703107]
[1728171479623,1.19,2413.5,2413.4,5.04718311]
[1728171479823,1.19,2413.5,2413.4,5.57713972]
[1728171481934,1.19,2413.5,2413.4,5.04718311]
[1728171482124,1.19,2413.5,2413.4,5.57716245]
[1728171485127,1.19,2413.5,2413.4,5.57702754]
[1728171488534,1.19,2413.5,2413.4,5.57691945]
[1728171489537,1.19,2413.5,2413.4,5.24545945]
[1728171489836,1.19,2413.5,2413.4,5.04718311]
[1728171489837,1.5862,2413.5,2413.4,5.04718311]
[1728171497331,1.5862,2413.5,2413.4,5.57698668]
[1728171499235,0.5862,2413.5,2413.4,5.57698668]
[1728171501636,0.5862,2413.5,2413.4,5.5771116]
[1728171504240,0.3962,2413.5,2413.4,5.5771116]
[1728171504439,0.4248,2413.6,2413.5,0.33145]
[1728171504637,0.4248,2413.6,2413.5,1.24957849]
[1728171504835,0.4248,2413.6,2413.5,1.14555]
[1728171505038,0.4248,2413.6,2413.5,1.675579]
[1728171508139,0.4248,2413.6,2413.5,1.14555]
[1728171508348,0.4248,2413.6,2413.5,1.67599919]
[1728171511541,0.4248,2413.6,2413.5,1.67622622]
[1728171511946,0.4248,2413.6,2413.5,1.67622659]
[1728171517245,0.4248,2413.6,2413.5,2.19209651]
[1728171517645,0.3996,2413.7,2413.6,0.33143]
[1728171517845,0.3996,2413.7,2413.6,0.86210659]
[1728171518345,0.3996,2413.7,2413.6,0.86241109]
[1728171521743,0.3996,2413.7,2413.6,0.86238439]
[1728171523445,5.5024,2413.9,2413.8,0.33141]
[1728171523646,4.8182,2413.9,2413.8,0.86236439]
[1728171523842,4.8182,2413.9,2413.8,5.26718843]
[1728171524553,1.6104,2413.9,2413.8,5.26718843]
[1728171524847,4.8182,2413.9,2413.8,4.73623404]
[1728171525053,4.8182,2413.9,2413.8,5.26708387]
[1728171527152,1.6104,2413.9,2413.8,5.26708387]
[1728171527450,4.8182,2413.9,2413.8,5.26708387]
[1728171528353,4.8182,2413.9,2413.8,5.26695321]
[1728171529854,1.6104,2413.9,2413.8,5.26695321]
[1728171530449,4.8182,2413.9,2413.8,5.26695321]
[1728171531158,1.6104,2413.9,2413.8,5.26695321]
[1728171531561,1.6104,2413.9,2413.8,4.73623404]
[1728171531860,1.6104,2413.9,2413.8,5.26683709]
[1728171532649,4.8182,2413.9,2413.8,5.26683709]
[1728171533856,5.2406,2413.9,2413.8,5.26683709]
[1728171534855,5.2406,2413.9,2413.8,4.73623404]
[1728171535062,5.2406,2413.9,2413.8,5.26678643]
[1728171536460,2.0328,2413.9,2413.8,5.26678643]
[1728171536665,5.2406,2413.9,2413.8,5.26678643]
[1728171538261,5.2406,2413.9,2413.8,5.26676194]
[1728171542067,2.0328,2413.9,2413.8,5.26676194]
[1728171542664,0.8428,2413.9,2413.8,5.26676194]
[1728171543572,0.8428,2413.9,2413.8,4.73623404]
[1728171544066,0.8428,2413.9,2413.8,5.26680649]
[1728171544363,0.4204,2413.9,2413.8,5.26680649]
[1728171547073,0.4204,2413.9,2413.8,4.73623404]
[1728171547267,0.4204,2413.9,2413.8,5.26684854]
[1728171550366,0.4204,2413.9,2413.8,4.73623404]
[1728171550564,0.4204,2413.9,2413.8,5.26698593]
[1728171551377,3.6282,2413.9,2413.8,5.26698593]
[1728171553073,0.4204,2413.9,2413.8,5.26698593]
[1728171553266,3.6282,2413.9,2413.8,5.26698593]
[1728171555276,0.4204,2413.9,2413.8,5.26698593]
[1728171555578,0.4204,2413.9,2413.8,5.68238593]
[1728171555871,3.6282,2413.9,2413.8,5.68238593]
[1728171556074,0.4204,2413.9,2413.8,5.68238593]
[1728171556881,0.4204,2413.9,2413.8,5.15163404]
[1728171557177,0.4204,2413.9,2413.8,5.68240173]
[1728171560274,0.4204,2413.9,2413.8,4.93563898]
[1728171563574,0.4204,2413.9,2413.8,4.9357547]
[1728171566280,15.03299,2413.9,2413.8,0.53093066]
[1728171566472,14.7016,2413.9,2413.3,1.18260475]
[1728171566684,14.7016,2413.9,2413.3,0.096]
[1728171566685,1.52146,2413.4,2413.3,0.096]
[1728171566871,0.33148,2413.3,2413.1,1.08660475]
[1728171567079,1.19,2413.2,2413.0,1.41812475]
[1728171567480,1.19,2413.2,2413.1,4.71313539]
[1728171568482,1.19,2413.2,2413.1,5.04463539]
[1728171569682,1.581,2413.2,2413.1,5.04463539]
[1728171578496,1.19,2413.2,2413.1,5.04463539]
[1728171579385,1.19,2413.2,2413.1,4.71313539]
[1728171580287,1.19,2413.2,2413.1,5.04463539]
[1728171582690,1.19,2413.2,2413.1,4.71313539]
[1728171583094,1.19,2413.2,2413.1,5.04463539]
[1728171602708,1.19,2413.2,2413.1,4.71313539]
[1728171606816,1.19,2413.2,2413.1,5.13243539]
[1728171607514,4.3978,2413.2,2413.1,5.13243539]
[1728171612217,4.3978,2413.2,2413.1,6.21904014]
[1728171612924,4.3978,2413.2,2413.1,6.73531415]
[1728171612925,1.19,2413.2,2413.1,6.73531415]
[1728171613225,4.3978,2413.2,2413.1,6.73531415]
[1728171613427,1.19,2413.2,2413.1,6.73531415]
[1728171613725,4.3978,2413.2,2413.1,6.21904014]
[1728171614116,4.3978,2413.2,2413.1,6.73531749]
[1728171614519,1.19,2413.2,2413.1,6.73531749]
[1728171615328,1.19,2413.2,2413.1,6.21904014]
[1728171615622,4.3978,2413.2,2413.1,6.73531507]
[1728171619932,1.19,2413.2,2413.1,6.73531507]
[1728171620136,4.3978,2413.2,2413.1,6.73531507]
[1728171621330,1.19,2413.2,2413.1,6.73531507]
[1728171621528,4.3978,2413.2,2413.1,6.73531507]
[1728171621729,1.19,2413.2,2413.1,6.21904014]
[1728171622024,1.19,2413.2,2413.1,6.7353603]
[1728171622332,4.3978,2413.2,2413.1,6.7353603]
[1728171623824,1.19,2413.2,2413.1,6.7353603]
[1728171624024,4.3978,2413.2,2413.1,6.7353603]
[1728171625135,4.3978,2413.2,2413.1,6.21904014]
[1728171625535,4.3978,2413.2,2413.1,6.73538558]
[1728171625937,1.19,2413.2,2413.1,6.73538558]
[1728171626137,4.3978,2413.2,2413.1,6.73538558]
[1728171628633,4.3978,2413.2,2413.1,6.21904014]
[1728171629241,1.19,2413.2,2413.1,6.73542593]
[1728171629941,4.3978,2413.2,2413.1,6.73542593]
[1728171630441,1.19,2413.2,2413.1,6.73542593]
[1728171630843,4.3978,2413.2,2413.1,6.73542593]
[1728171632039,1.19,2413.2,2413.1,6.73542593]
[1728171632538,4.3978,2413.2,2413.1,6.73542593]
[1728171634246,1.19,2413.2,2413.1,6.73542593]
[1728171634440,4.3978,2413.2,2413.1,6.73542593]
[1728171635233,4.3978,2413.2,2413.1,6.21904014]
[1728171635446,4.3978,2413.2,2413.1,6.73545478]
[1728171638243,4.3978,2413.2,2413.1,6.21904014]
[1728171638850,4.3978,2413.2,2413.1,5.13243539]
[1728171660170,1.19,2413.2,2413.1,5.13243539]
[1728171660568,4.3978,2413.2,2413.1,5.13243539]
[1728171661079,4.3978,2413.2,2412.7,0.096]
[1728171661080,0.82877,2413.1,2412.7,0.096]
[1728171661368,4.3978,2412.8,2412.5,0.9053]
[1728171661564,1.19,2412.6,2412.5,0.8093]
[1728171661974,5.3348,2412.6,2412.4,0.3316]
[1728171662164,3.6047,2412.5,2412.3,0.4176]
[1728171662368,1.19,2412.4,2412.3,0.7492]
[1728171664662,3.2078,2412.8,2412.7,0.33156]
[1728171664866,3.2078,2412.8,2412.6,0.33156]
[1728171664867,1.19,2412.7,2412.6,0.33156]
[1728171665171,1.19,2412.7,2412.6,4.76992143]
[1728171671180,4.3978,2412.7,2412.6,4.76992143]
[1728171677382,1.19,2412.7,2412.6,4.76992143]
[1728171677580,4.3978,2412.7,2412.6,4.76992143]
[1728171680584,4.3978,2412.7,2412.6,5.18782143]
[1728171684291,1.19,2412.7,2412.6,5.18782143]
[1728171684593,4.3978,2412.7,2412.6,5.18782143]
[1728171686295,1.19,2412.7,2412.6,5.18782143]
[1728171686491,4.3978,2412.7,2412.6,5.18782143]
[1728171688495,0.714,2413.0,2412.9,0.33153]
[1728171688690,0.425,2413.0,2412.9,0.33153]
[1728171689699,0.425,2413.0,2412.8,0.3925]
[1728171689700,0.425,2413.0,2412.8,0.72404]
[1728171689882,0.425,2413.0,2412.9,0.4187]
[1728171690088,0.425,2413.0,2412.9,4.72940164]
[1728171693095,0.425,2413.0,2412.9,5.06093164]
[1728171693297,0.425,2413.0,2412.9,4.72940164]
[1728171694097,1.615,2413.0,2412.9,5.06093164]
[1728171697302,4.8228,2413.0,2412.9,5.06093164]
[1728171699394,1.615,2413.0,2412.9,5.06093164]
[1728171705600,0.425,2413.0,2412.9,5.06093164]
[1728171705798,3.603,2413.1,2413.0,0.33152]
[1728171705799,3.2078,2413.1,2413.0,0.33152]
[1728171706200,0.409,2413.2,2413.0,4.80886333]
[1728171706401,0.409,2413.2,2413.1,0.3315]
[1728171706710,0.409,2413.2,2413.1,5.33750838]
[1728171718504,3.6064,2413.4,2413.3,0.33147]
[1728171718800,3.6064,2413.4,2413.2,0.73928]
[1728171719008,4.0035,2413.4,2413.2,0.4078]
[1728171719313,4.0035,2413.4,2413.3,4.51562952]
[1728171719513,5.1935,2413.4,2413.3,4.51562952]
[1728171726316,5.52496,2413.4,2413.3,4.51562952]
[1728171726514,0.33148,2413.3,2412.9,0.81802]
[1728171726718,4.3978,2413.0,2412.7,1.18260475]
[1728171727020,4.3978,2413.0,2412.6,1.72327819]
[1728171727021,1.19,2412.8,2412.6,0.72206]
[1728171727222,0.4252,2412.7,2412.6,0.72206]
[1728171727724,0.4252,2412.7,2412.6,5.18812005]
[1728171732018,0.4089,2412.9,2412.6,4.85656005]
[1728171732226,1.214,2413.1,2412.9,0.33152]
[1728171732527,0.925,2413.1,2413.0,0.4109]
[1728171733330,0.925,2413.1,2413.0,0.74242]
[1728171733827,2.0161,2413.2,2413.0,0.74242]
[1728171734433,1.6128,2413.2,2413.0,0.74242]
[1728171734828,1.19,2413.2,2413.1,0.3315]
[1728171735024,3.2078,2413.3,2413.0,0.4109]
[1728171735025,4.3978,2413.3,2413.0,0.4109]
[1728171735222,4.3978,2413.3,2413.2,0.33149]
[1728171735726,3.2078,2413.3,2413.2,4.85955765]
[1728171736930,3.2078,2413.4,2413.3,0.33147]
[1728171737226,3.2078,2413.4,2413.3,4.91748985]
[1728171739840,1.19,2413.5,2413.3,4.91748985]
[1728171740235,3.2078,2413.4,2413.3,4.91748985]
[1728171741934,3.2078,2413.4,2413.3,4.58601985]
[1728171742539,1.19,2413.5,2413.3,4.58601985]
[1728171742941,3.2078,2413.4,2413.3,4.58601985]
[1728171744444,1.19,2413.5,2413.3,4.58601985]
[1728171744647,3.2078,2413.4,2413.3,4.58601985]
[1728171745241,1.19,2413.5,2413.3,4.58601985]
[1728171745947,3.2078,2413.4,2413.3,4.58601985]
[1728171747454,1.19,2413.5,2413.3,4.58601985]
[1728171747650,3.2078,2413.4,2413.3,4.58601985]
[1728171748552,3.2078,2413.4,2413.3,4.91748985]
[1728171749753,3.2078,2413.4,2413.3,4.58601985]
[1728171750052,1.19,2413.5,2413.3,4.58601985]
[1728171750251,1.19,2413.5,2413.3,4.91748985]
[1728171750451,1.19,2413.5,2413.3,5.34338985]
[1728171751551,4.3978,2413.5,2413.3,5.34338985]
[1728171752249,1.19,2413.5,2413.3,5.34338985]
[1728171752449,4.3978,2413.5,2413.3,5.34338985]
[1728171753257,1.19,2413.5,2413.3,5.34338985]
[1728171754060,4.3978,2413.5,2413.3,5.34338985]
[1728171755254,1.19,2413.5,2413.3,5.34338985]
[1728171755652,4.3978,2413.5,2413.3,5.34338985]
[1728171756460,1.19,2413.5,2413.3,5.34338985]
[1728171756960,4.3978,2413.5,2413.3,5.34338985]
[1728171757958,1.19,2413.5,2413.3,5.34338985]
[1728171758361,4.3978,2413.5,2413.3,5.34338985]
[1728171758960,1.19,2413.5,2413.3,5.34338985]
[1728171759160,4.3978,2413.5,2413.3,5.34338985]
[1728171759363,4.3978,2413.5,2413.4,0.33146]
[1728171760561,1.19,2413.5,2413.4,0.33146]
[1728171760761,4.3978,2413.5,2413.4,0.33146]
[1728171763466,1.19,2413.5,2413.4,0.33146]
[1728171764161,3.2078,2413.5,2413.4,0.33146]
[1728171764365,0.289,2413.8,2413.7,0.33142]
[1728171764663,3.5989,2413.9,2413.8,0.33141]
[1728171765063,3.2078,2413.9,2413.8,0.33141]
[1728171765768,3.2078,2413.9,2413.8,4.74128275]
[1728171765963,1.6056,2414.1,2414.0,0.33138]
[1728171766564,1.6056,2414.1,2414.0,0.8117]
[1728171769765,1.6056,2414.1,2414.0,1.14308]
[1728171770062,1.6056,2414.1,2414.0,0.8117]
[1728171771256,3.9029,2414.3,2414.0,4.9541]
[1728171771456,0.289,2414.5,2414.2,1.19]
[1728171771658,3.2078,2414.6,2414.4,0.33132]
[1728171771971,4.5284,2414.7,2414.5,5.32895045]
[1728171772172,0.3904,2414.7,2414.5,5.32895045]
[1728171772374,0.3904,2414.7,2414.5,5.66025045]
[1728171772575,0.3904,2414.7,2414.5,5.32895045]
[1728171774371,1.5804,2414.7,2414.5,5.32895045]
[1728171779177,3.2078,2414.9,2414.6,0.33129]
[1728171779380,0.4043,2414.8,2414.5,5.66025045]
[1728171779578,0.4043,2414.8,2414.6,0.33129]
[1728171779782,0.4043,2414.8,2414.5,5.32895045]
[1728171779981,0.4043,2414.8,2414.5,5.66025045]
[1728171780579,0.4043,2414.8,2414.5,5.32895045]
[1728171781077,0.4043,2414.8,2414.5,5.66026045]
[1728171781078,1.5943,2414.8,2414.5,5.66026045]
[1728171783279,0.412,2414.9,2414.7,0.33128]
[1728171783475,0.412,2414.9,2414.8,0.3978]
[1728171784176,1.602,2414.9,2414.8,0.3978]
[1728171788385,1.602,2414.9,2414.8,0.72907]
[1728171789077,0.412,2414.9,2414.8,0.72907]
[1728171789276,3.2078,2415.0,2414.9,0.33126]
[1728171789478,3.2078,2415.0,2414.9,1.12156]
[1728171789684,3.2078,2415.0,2414.9,5.69737926]
[1728171790681,3.5975,2415.1,2414.9,5.69737926]
[1728171790881,0.3897,2415.1,2414.9,5.69737926]
[1728171791082,1.5797,2415.1,2414.9,5.69737926]
[1728171791791,0.3897,2415.1,2414.9,5.69737926]
[1728171791979,1.5797,2415.1,2414.9,5.36611926]
[1728171792179,1.5797,2415.1,2414.8,0.72906]
[1728171792180,9.25953,2415.1,2414.6,0.33129]
[1728171792379,1.19,2414.9,2414.5,1.5724]
[1728171792580,1.19,2414.9,2414.7,4.53497085]
[1728171792581,0.4239,2414.8,2414.7,4.53497085]
[1728171792780,0.4239,2414.8,2414.5,1.2411]
[1728171792979,0.4239,2414.8,2414.6,0.33129]
[1728171793182,0.4239,2414.8,2414.6,4.92349828]
[1728171795281,1.19,2414.9,2414.6,4.92349828]
[1728171797077,1.19,2414.9,2414.6,4.59220828]
[1728171799588,1.19,2414.9,2414.6,4.92349828]
[1728171799788,1.19,2414.9,2414.6,4.59220828]
[1728171801289,1.19,2414.9,2414.6,4.92349828]
[1728171801691,1.19,2414.9,2414.6,4.59220828]